fUSD/lending_fUSD_20250112
["ID","MTS","AMOUNT","RATE_DAILY","PERIOD"]
[348595270,1736657436761,-868.36,9.997e-05,2]
[348595271,1736657436770,-888.92,9.997e-05,2]
[348595272,1736657436779,-2027.94,9.997e-05,2]
[348595273,1736657436788,-1154.16,9.997e-05,2]
[348595274,1736657436798,-1220.5,9.997e-05,2]
[348595275,1736657436807,-1300.49,9.997e-05,2]
[348595276,1736657436816,-641.07,9.997e-05,2]
[348595277,1736657436829,-1301.36,9.997e-05,2]
[348595278,1736657436838,-500.0,9.997e-05,2]
[348595279,1736657436847,-629.72,9.998e-05,2]
[348595280,1736657436856,-500.0,9.998e-05,2]
[348595281,1736657436864,-905.1,9.998e-05,2]
[348595282,1736657436873,-500.0,9.999e-05,2]
[348595283,1736657436883,-511.887112,9.999e-05,2]
[348595284,1736657436892,-1000.0,9.999e-05,2]
[348595285,1736657436902,-774.66,9.999e-05,2]
[348595286,1736657436911,-783.67,9.999e-05,2]
[348595287,1736657436919,-500.0,9.999e-05,2]
[348595288,1736657436928,-500.0,9.999e-05,2]
[348595289,1736657436937,-727.45,9.999e-05,2]
[348595290,1736657436946,-1508.42,9.999e-05,2]
[348595291,1736657436955,-500.0,9.999e-05,2]
[348595292,1736657436963,-500.0,9.999e-05,2]
[348595293,1736657436972,-1072.99,9.999e-05,2]
[348595294,1736657436981,-539.15,9.999e-05,2]
[348595295,1736657436990,-1128.72,9.999e-05,2]
[348595296,1736657436999,-601.14851119,9.999e-05,2]
[348595297,1736657437008,-2016.0,9.999e-05,2]
[348595298,1736657437017,-1268.0,9.999e-05,2]
[348595299,1736657437026,-1861.0,9.999e-05,2]
[348595300,1736657437035,-1259.0,9.999e-05,2]
[348595301,1736657437044,-915.0,9.999e-05,2]
[348595302,1736657437053,-820.0,9.999e-05,2]
[348595303,1736657437062,-3978.0,9.999e-05,2]
[348595304,1736657437073,-537.0,9.999e-05,2]
[348595305,1736657437082,-9627.0,9.999e-05,2]
[348595306,1736657437091,-150.0,9.999e-05,2]
[348595307,1736657437100,-3896.0,9.999e-05,2]
[348595308,1736657437109,-500.0,0.0001,2]
[348595309,1736657437118,-74573.89635316,0.0001,2]
[348595310,1736657437145,-22540.34589333,0.0001,2]
[348595311,1736657437155,-94623.00380697,0.0001,2]
[348595312,1736657437166,-79957.49573511,0.0001,2]
[348595313,1736657437177,-711.6811421,0.0001,2]
[348595331,1736657438206,-705.69,9.995e-05,2]
[348595333,1736657438215,-280.89501,9.997e-05,2]
[348595336,1736657438226,-478.65499,9.997e-05,2]
[348595338,1736657438236,-1635.57,9.997e-05,2]
[348595340,1736657438245,-150.0,9.999e-05,2]
[348595342,1736657438254,-150.97158288,0.0001,2]
[348595344,1736657438263,-1535.80342713,0.0001,2]
[348595346,1736657438276,-2151.0577244,0.0001,2]
[348595348,1736657438287,-265623.66808452,0.0001,2]
[348595351,1736657438306,-769.22313,0.0001,2]
[348595354,1736657438324,-500.0,0.0001,2]
[348595356,1736657438335,-30059.56939588,0.0001,2]
[348595357,1736657438346,-1608.21638362,0.0001,2]
[348595472,1736657439829,-4476.39938864,0.0001,2]
[348595473,1736657440109,-166017.00195249,0.0001,2]
[348595474,1736657440119,-15629.63265071,0.0001,2]
[348595475,1736657440128,-6693.0992119,0.0001,2]
[348595476,1736657440139,-10577.96,0.0001,2]
[348595477,1736657440151,-1997.78999998,0.0001,2]
[348595478,1736657440164,-520.14999995,0.0001,2]
[348595479,1736657440178,-369.5399999,0.0001,2]
[348595480,1736657440193,-32935.54393885,0.0001,2]
[348595481,1736657440222,-4839.37081224,0.0001,2]
[348595492,1736657778182,1204.91,8.219e-05,2]
[348595514,1736658632247,-150.0,8.934e-05,2]
[348595515,1736658632256,-150.0,8.957e-05,2]
[348595516,1736658632265,-150.0,9.022e-05,2]
[348595517,1736658632274,-610.37,9.053e-05,2]
[348595518,1736658632283,-1000.0,9.062e-05,2]
[348595519,1736658632292,-250.0,9.115e-05,2]
[348595520,1736658632302,-298.27,9.127e-05,2]
[348595521,1736658632311,-167.09,9.149e-05,2]
[348595522,1736658632320,-150.0,9.233e-05,2]
[348595523,1736658632330,-150.0,9.287e-05,2]
[348595524,1736658632339,-150.0,9.431e-05,2]
[348595525,1736658632348,-400.0,9.6e-05,3]
[348595526,1736658632358,-10163.0,9.606e-05,2]
[348595527,1736658632367,-900.0,9.7e-05,3]
[348595528,1736658632385,-151.31,9.752e-05,2]
[348595529,1736658632396,-150.0,9.789e-05,2]
[348595530,1736658632406,-1400.0,9.8e-05,3]
[348595531,1736658632415,-328.052216,9.885e-05,2]
[348595532,1736658632424,-405.884316,9.885e-05,2]
[348595533,1736658632434,-328.052216,9.888e-05,2]
[348595534,1736658632443,-405.884316,9.888e-05,2]
[348595535,1736658632453,-328.052216,9.892e-05,2]
[348595536,1736658632463,-405.884316,9.892e-05,2]
[348595537,1736658632473,-328.052216,9.894e-05,2]
[348595538,1736658632483,-328.052216,9.894e-05,2]
[348595539,1736658632492,-405.884316,9.894e-05,2]
[348595540,1736658632501,-405.884316,9.894e-05,2]
[348595541,1736658632511,-328.052216,9.895e-05,2]
[348595542,1736658632520,-405.884316,9.895e-05,2]
[348595543,1736658632530,-328.052216,9.896e-05,2]
[348595544,1736658632539,-328.052216,9.896e-05,2]
[348595545,1736658632549,-405.884316,9.896e-05,2]
[348595546,1736658632558,-405.884316,9.896e-05,2]
[348595547,1736658632568,-289.8087,9.897e-05,2]
[348595548,1736658632577,-328.052216,9.897e-05,2]
[348595549,1736658632586,-405.884316,9.897e-05,2]
[348595550,1736658632596,-150.0,9.897e-05,2]
[348595551,1736658632606,-1800.0,9.9e-05,3]
[348595552,1736658632615,-685.23961456,9.957e-05,2]
[348595553,1736658632624,-500.0,9.973e-05,2]
[348595554,1736658632634,-257.4004,9.992e-05,2]
[348595555,1736658632645,-1559.666,9.992e-05,2]
[348595556,1736658632654,-1000.0,9.994e-05,2]
[348595557,1736658632664,-500.0,9.995e-05,2]
[348595558,1736658632674,-500.0,9.995e-05,2]
[348595559,1736658632683,-500.46683406,9.995e-05,2]
[348595560,1736658632697,-500.0,9.995e-05,2]
[348595561,1736658632706,-500.0,9.995e-05,2]
[348595562,1736658632716,-500.0,9.995e-05,2]
[348595563,1736658632725,-500.0,9.995e-05,2]
[348595564,1736658632735,-500.0,9.995e-05,2]
[348595565,1736658632744,-500.0,9.995e-05,2]
[348595566,1736658632753,-500.0,9.995e-05,2]
[348595567,1736658632763,-500.0,9.995e-05,2]
[348595568,1736658632772,-500.0,9.995e-05,2]
[348595569,1736658632782,-500.0,9.995e-05,2]
[348595570,1736658632791,-500.0,9.995e-05,2]
[348595571,1736658632801,-500.0,9.995e-05,2]
[348595572,1736658632810,-500.0,9.995e-05,2]
[348595573,1736658632819,-500.0,9.995e-05,2]
[348595574,1736658632829,-500.0,9.995e-05,2]
[348595575,1736658632838,-500.0,9.995e-05,2]
[348595576,1736658632849,-500.0,9.995e-05,2]
[348595577,1736658632858,-500.0,9.995e-05,2]
[348595578,1736658632867,-500.0,9.995e-05,2]
[348595579,1736658633138,-500.0,9.995e-05,2]
[348595580,1736658633149,-500.0,9.995e-05,2]
[348595581,1736658633159,-500.0,9.995e-05,2]
[348595582,1736658633168,-500.0,9.995e-05,2]
[348595583,1736658633178,-500.0,9.995e-05,2]
[348595584,1736658633187,-559.41,9.995e-05,2]
[348595585,1736658633197,-500.0,9.995e-05,2]
[348595586,1736658633206,-500.0,9.995e-05,2]
[348595587,1736658633216,-640.82,9.995e-05,2]
[348595588,1736658633225,-500.0,9.995e-05,2]
[348595589,1736658633234,-500.0,9.995e-05,2]
[348595590,1736658633243,-548.34,9.995e-05,2]
[348595591,1736658633253,-549.03,9.995e-05,2]
[348595592,1736658633262,-500.0,9.995e-05,2]
[348595593,1736658633271,-500.0,9.995e-05,2]
[348595594,1736658633281,-500.0,9.995e-05,2]
[348595595,1736658633291,-626.23,9.995e-05,2]
[348595596,1736658633301,-500.0,9.995e-05,2]
[348595597,1736658633310,-500.0,9.995e-05,2]
[348595598,1736658633319,-500.0,9.995e-05,2]
[348595599,1736658633329,-500.0,9.995e-05,2]
[348595600,1736658633338,-500.0,9.995e-05,2]
[348595601,1736658633347,-500.0,9.995e-05,2]
[348595602,1736658633357,-500.0,9.995e-05,2]
[348595603,1736658633366,-500.0,9.995e-05,2]
[348595604,1736658633376,-500.0,9.995e-05,2]
[348595605,1736658633386,-500.0,9.995e-05,2]
[348595606,1736658633396,-500.0,9.995e-05,2]
[348595607,1736658633405,-500.0,9.995e-05,2]
[348595608,1736658633415,-500.0,9.995e-05,2]
[348595609,1736658633424,-500.0,9.995e-05,2]
[348595610,1736658633434,-500.0,9.995e-05,2]
[348595611,1736658633443,-500.0,9.995e-05,2]
[348595612,1736658633453,-500.0,9.995e-05,2]
[348595613,1736658633462,-500.0,9.995e-05,2]
[348595614,1736658633471,-500.0,9.995e-05,2]
[348595615,1736658633481,-500.0,9.995e-05,2]
[348595616,1736658633491,-670.55,9.995e-05,2]
[348595617,1736658633500,-500.0,9.995e-05,2]
[348595618,1736658633510,-594.78,9.995e-05,2]
[348595619,1736658633519,-500.0,9.995e-05,2]
[348595620,1736658633529,-500.0,9.995e-05,2]
[348595621,1736658633539,-805.37,9.995e-05,2]
[348595622,1736658633549,-500.0,9.995e-05,2]
[348595623,1736658633559,-561.23,9.995e-05,2]
[348595624,1736658633569,-500.0,9.995e-05,2]
[348595625,1736658633579,-500.0,9.995e-05,2]
[348595626,1736658633589,-622.63,9.995e-05,2]
[348595627,1736658633599,-500.0,9.995e-05,2]
[348595628,1736658633609,-500.0,9.995e-05,2]
[348595629,1736658633619,-500.0,9.995e-05,2]
[348595630,1736658633628,-642.39,9.995e-05,2]
[348595631,1736658633638,-500.0,9.995e-05,2]
[348595632,1736658633648,-500.0,9.995e-05,2]
[348595633,1736658633658,-500.0,9.995e-05,2]
[348595634,1736658633667,-500.0,9.995e-05,2]
[348595635,1736658633678,-500.0,9.995e-05,2]
[348595636,1736658633687,-500.0,9.995e-05,2]
[348595637,1736658633701,-551.87,9.995e-05,2]
[348595638,1736658633711,-500.0,9.995e-05,2]
[348595639,1736658633720,-500.0,9.995e-05,2]
[348595640,1736658633731,-500.0,9.995e-05,2]
[348595641,1736658633741,-2429.81,9.995e-05,2]
[348595642,1736658633750,-500.0,9.995e-05,2]
[348595643,1736658633760,-1428.61,9.995e-05,2]
[348595644,1736658633770,-500.0,9.995e-05,2]
[348595645,1736658633779,-573.25,9.995e-05,2]
[348595646,1736658633789,-661.29,9.995e-05,2]
[348595647,1736658633798,-500.0,9.995e-05,2]
[348595648,1736658633808,-500.0,9.995e-05,2]
[348595649,1736658633817,-3105.54,9.995e-05,2]
[348595650,1736658633826,-615.56,9.995e-05,2]
[348595651,1736658633836,-500.0,9.995e-05,2]
[348595652,1736658633845,-752.97,9.995e-05,2]
[348595653,1736658633854,-853.57,9.995e-05,2]
[348595654,1736658633864,-500.0,9.995e-05,2]
[348595655,1736658633873,-2715.71,9.995e-05,2]
[348595656,1736658633883,-667.56,9.995e-05,2]
[348595657,1736658633893,-500.0,9.995e-05,2]
[348595658,1736658633902,-500.0,9.995e-05,2]
[348595659,1736658633911,-500.0,9.995e-05,2]
[348595660,1736658633921,-500.0,9.995e-05,2]
[348595661,1736658633930,-500.0,9.995e-05,2]
[348595662,1736658633939,-500.0,9.995e-05,2]
[348595663,1736658633949,-500.0,9.995e-05,2]
[348595664,1736658633959,-500.0,9.995e-05,2]
[348595665,1736658633968,-500.0,9.995e-05,2]
[348595666,1736658633978,-873.03,9.995e-05,2]
[348595667,1736658633987,-767.32,9.995e-05,2]
[348595668,1736658633997,-1268.69,9.995e-05,2]
[348595669,1736658634006,-917.99,9.995e-05,2]
[348595670,1736658634016,-921.87,9.995e-05,2]
[348595671,1736658634025,-500.0,9.995e-05,2]
[348595672,1736658634035,-508.35,9.995e-05,2]
[348595673,1736658634044,-2325.72782846,9.995e-05,2]
[348595674,1736658634395,-1268.48217154,9.995e-05,2]
[348595675,1736658634405,-500.0,9.995e-05,2]
[348595676,1736658634415,-500.0,9.995e-05,2]
[348595677,1736658634424,-500.0,9.995e-05,2]
[348595678,1736658634434,-500.0,9.995e-05,2]
[348595679,1736658634443,-602.97,9.995e-05,2]
[348595680,1736658634452,-500.0,9.995e-05,2]
[348595681,1736658634461,-500.0,9.995e-05,2]
[348595682,1736658634470,-500.0,9.996e-05,2]
[348595683,1736658634480,-500.0,9.996e-05,2]
[348595684,1736658634489,-666.57,9.996e-05,2]
[348595685,1736658634499,-500.0,9.996e-05,2]
[348595686,1736658634509,-500.0,9.996e-05,2]
[348595687,1736658634518,-500.0,9.996e-05,2]
[348595688,1736658634528,-599.48,9.996e-05,2]
[348595689,1736658634538,-500.0,9.996e-05,2]
[348595690,1736658634547,-556.74,9.996e-05,2]
[348595691,1736658634556,-500.0,9.996e-05,2]
[348595692,1736658634567,-500.0,9.996e-05,2]
[348595693,1736658634576,-686.63,9.996e-05,2]
[348595694,1736658634586,-500.0,9.996e-05,2]
[348595695,1736658634595,-500.0,9.996e-05,2]
[348595696,1736658634604,-832.18,9.996e-05,2]
[348595697,1736658634614,-500.0,9.996e-05,2]
[348595698,1736658634623,-500.0,9.996e-05,2]
[348595699,1736658634633,-893.79,9.996e-05,2]
[348595700,1736658634644,-500.0,9.996e-05,2]
[348595701,1736658634652,-500.0,9.996e-05,2]
[348595702,1736658634662,-701.21,9.996e-05,2]
[348595703,1736658634671,-1410.49,9.996e-05,2]
[348595704,1736658634681,-500.0,9.996e-05,2]
[348595705,1736658634691,-794.73,9.996e-05,2]
[348595706,1736658634704,-500.0,9.996e-05,2]
[348595707,1736658634714,-500.0,9.996e-05,2]
[348595708,1736658634723,-1026.32,9.996e-05,2]
[348595709,1736658634733,-1168.14,9.996e-05,2]
[348595710,1736658634742,-507.98,9.996e-05,2]
[348595711,1736658634751,-679.42,9.996e-05,2]
[348595712,1736658634761,-500.0,9.996e-05,2]
[348595713,1736658634770,-1306.96,9.996e-05,2]
[348595714,1736658634779,-500.0,9.996e-05,2]
[348595715,1736658634789,-2429.74,9.996e-05,2]
[348595716,1736658634798,-2429.74,9.996e-05,2]
[348595717,1736658634809,-1660.14,9.996e-05,2]
[348595718,1736658634818,-1362.23,9.996e-05,2]
[348595719,1736658634827,-2830.4,9.996e-05,2]
[348595720,1736658634838,-1259.28,9.996e-05,2]
[348595721,1736658634848,-760.32,9.996e-05,2]
[348595722,1736658634857,-998.12,9.996e-05,2]
[348595723,1736658634866,-1329.64,9.996e-05,2]
[348595724,1736658634875,-6744.4,9.996e-05,2]
[348595725,1736658634885,-500.0,9.996e-05,2]
[348595726,1736658634895,-664.97,9.996e-05,2]
[348595727,1736658634905,-500.0,9.996e-05,2]
[348595728,1736658634914,-2198.09,9.996e-05,2]
[348595729,1736658634923,-1017.31,9.996e-05,2]
[348595730,1736658634934,-2971.75,9.996e-05,2]
[348595731,1736658634944,-3213.51,9.996e-05,2]
[348595732,1736658634954,-2910.31,9.996e-05,2]
[348595733,1736658634965,-500.0,9.996e-05,2]
[348595734,1736658634974,-1833.01,9.996e-05,2]
[348595735,1736658634983,-500.0,9.996e-05,2]
[348595736,1736658634992,-500.0,9.996e-05,2]
[348595737,1736658635004,-1155.26,9.996e-05,2]
[348595738,1736658635015,-1082.46,9.996e-05,2]
[348595739,1736658635025,-3715.36,9.996e-05,2]
[348595740,1736658635035,-3047.36,9.996e-05,2]
[348595741,1736658635044,-1321.21,9.996e-05,2]
[348595742,1736658635055,-1182.0,9.996e-05,2]
[348595743,1736658635065,-521.34,9.996e-05,2]
[348595744,1736658635076,-691.46,9.996e-05,2]
[348595745,1736658635086,-500.0,9.996e-05,2]
[348595746,1736658635096,-602.79399231,9.996e-05,2]
[348595747,1736658635107,-1049.99,9.996e-05,2]
[348595748,1736658635116,-1789.57,9.996e-05,2]
[348595749,1736658635125,-666.7,9.996e-05,2]
[348595750,1736658635135,-2139.88,9.996e-05,2]
[348595751,1736658635143,-1238.82,9.996e-05,2]
[348595752,1736658635153,-500.0,9.996e-05,2]
[348595753,1736658635162,-500.0,9.996e-05,2]
[348595754,1736658635171,-500.0,9.996e-05,2]
[348595755,1736658635182,-1878.21,9.996e-05,2]
[348595756,1736658635191,-879.01,9.996e-05,2]
[348595757,1736658635202,-500.0,9.996e-05,2]
[348595758,1736658635213,-847.5,9.996e-05,2]
[348595759,1736658635223,-1300.93,9.996e-05,2]
[348595760,1736658635232,-373.49445666,9.996e-05,2]
[348595761,1736658635241,-1233.71,9.997e-05,2]
[348595762,1736658635250,-421.24175362,9.997e-05,2]
[348595763,1736658635259,-1327.54,9.997e-05,2]
[348595764,1736658635268,-500.0,9.997e-05,2]
[348595765,1736658635277,-83.17137104,9.997e-05,2]
[348595777,1736658637872,-500.0,9.995e-05,2]
[348595779,1736658637881,-3036.55,9.996e-05,2]
[348595780,1736658637892,-602.18,9.996e-05,2]
[348595781,1736658637901,-531.18862896,9.997e-05,2]
[348595782,1736658637911,-1791.27,9.997e-05,2]
[348595783,1736658637921,-751.02,9.997e-05,2]
[348595784,1736658637930,-736.98,9.997e-05,2]
[348595785,1736658637939,-530.67,9.997e-05,2]
[348595786,1736658637948,-500.0,9.997e-05,2]
[348595787,1736658637957,-500.0,9.997e-05,2]
[348595788,1736658637967,-500.0,9.997e-05,2]
[348595789,1736658637976,-500.0,9.997e-05,2]
[348595790,1736658637985,-500.0,9.997e-05,2]
[348595791,1736658637995,-500.0,9.997e-05,2]
[348595792,1736658638004,-522.04,9.997e-05,2]
[348595793,1736658638013,-500.0,9.997e-05,2]
[348595794,1736658638023,-500.0,9.997e-05,2]
[348595795,1736658638032,-500.0,9.997e-05,2]
[348595796,1736658638041,-500.0,9.997e-05,2]
[348595797,1736658638051,-902.19,9.997e-05,2]
[348595798,1736658638060,-500.0,9.997e-05,2]
[348595799,1736658638069,-500.0,9.997e-05,2]
[348595800,1736658638078,-582.87,9.997e-05,2]
[348595801,1736658638087,-711.39,9.997e-05,2]
[348595802,1736658638096,-1102.45,9.997e-05,2]
[348595803,1736658638105,-782.02,9.997e-05,2]
[348595804,1736658638115,-500.0,9.997e-05,2]
[348595805,1736658638123,-500.0,9.997e-05,2]
[348595806,1736658638133,-511.63,9.997e-05,2]
[348595807,1736658638152,-500.0,9.997e-05,2]
[348595808,1736658638162,-281.46963256,9.997e-05,2]
[348595809,1736658638171,-500.0,9.997e-05,2]
[348595810,1736658638181,-543.82,9.997e-05,2]
[348595811,1736658638190,-680.81,9.997e-05,2]
[348595812,1736658638199,-500.0,9.997e-05,2]
[348595813,1736658638209,-500.0,9.997e-05,2]
[348595814,1736658638219,-500.0,9.997e-05,2]
[348595815,1736658638228,-500.0,9.997e-05,2]
[348595816,1736658638237,-500.0,9.997e-05,2]
[348595817,1736658638247,-500.0,9.997e-05,2]
[348595818,1736658638256,-1119.43,9.997e-05,2]
[348595819,1736658638265,-568.4,9.997e-05,2]
[348595820,1736658638274,-500.0,9.997e-05,2]
[348595821,1736658638284,-712.36,9.997e-05,2]
[348595822,1736658638293,-500.0,9.997e-05,2]
[348595823,1736658638302,-492.60876365,9.997e-05,2]
[348595824,1736658638328,-7.39123635,9.997e-05,2]
[348595825,1736658638338,-758.41,9.997e-05,2]
[348595826,1736658638347,-430.91672686,9.997e-05,2]
[348595827,1736658638358,-69.08327314,9.997e-05,2]
[348595828,1736658638367,-500.0,9.997e-05,2]
[348595829,1736658638376,-428.3237593,9.997e-05,2]
[348595831,1736658638388,-71.6762407,9.997e-05,2]
[348595833,1736658638397,-500.0,9.997e-05,2]
[348595835,1736658638408,-500.0,9.997e-05,2]
[348595837,1736658638417,-611.09,9.997e-05,2]
[348595838,1736658638426,-57.3557532,9.997e-05,2]
[348595839,1736658638438,-304.57,9.997e-05,2]
[348595840,1736658638448,-138.0742468,9.997e-05,2]
[348595842,1736658638457,-500.0,9.997e-05,2]
[348595843,1736658638467,-15.83106659,9.997e-05,2]
[348595844,1736658638479,-788.65893341,9.997e-05,2]
[348595845,1736658638488,-514.09158691,9.997e-05,2]
[348595846,1736658638497,-381.05947968,9.997e-05,2]
[348595847,1736658638517,-118.94052032,9.997e-05,2]
[348595848,1736658638526,-530.14989772,9.997e-05,2]
[348595849,1736658638536,-73.03958496,9.997e-05,2]
[348595850,1736658638547,-426.96041504,9.997e-05,2]
[348595851,1736658638556,-500.0,9.997e-05,2]
[348595852,1736658638566,-500.0,9.997e-05,2]
[348595853,1736658638576,-134.16887873,9.997e-05,2]
[348595854,1736658638608,-365.83112127,9.997e-05,2]
[348595855,1736658638617,-384.19727168,9.997e-05,2]
[348595856,1736658638629,-107.69517092,9.997e-05,2]
[348595857,1736658638638,-1130.42,9.997e-05,2]
[348595858,1736658638648,-500.0,9.997e-05,2]
[348595859,1736658638657,-500.0,9.997e-05,2]
[348595860,1736658638666,-755.44,9.997e-05,2]
[348595861,1736658638675,-500.0,9.997e-05,2]
[348595862,1736658638684,-500.0,9.997e-05,2]
[348595863,1736658638695,-500.0,9.997e-05,2]
[348595864,1736658638704,-500.0,9.997e-05,2]
[348595865,1736658638713,-500.0,9.997e-05,2]
[348595866,1736658638722,-500.0,9.997e-05,2]
[348595867,1736658638732,-500.0,9.997e-05,2]
[348595868,1736658638742,-500.0,9.997e-05,2]
[348595869,1736658638753,-500.0,9.997e-05,2]
[348595870,1736658638764,-711.51,9.997e-05,2]
[348595871,1736658638773,-1058.27185451,9.997e-05,2]
[348595872,1736658638787,-267.33249117,9.997e-05,2]
[348595873,1736658638798,-0.42565432,9.997e-05,2]
[348595874,1736658638807,-784.9153541,9.997e-05,2]
[348595875,1736658638820,-8.6846459,9.997e-05,2]
[348595876,1736658638829,-282.1263541,9.997e-05,2]
[348595877,1736658638842,-217.8736459,9.997e-05,2]
[348595878,1736658638852,-500.0,9.997e-05,2]
[348595879,1736658638861,-500.0,9.997e-05,2]
[348595880,1736658638870,-500.0,9.997e-05,2]
[348595881,1736658638880,-97.84414696,9.997e-05,2]
[348595882,1736658638898,-380.67641698,9.997e-05,2]
[348595886,1736658640107,-875.81996469,9.996e-05,2]
[348595887,1736658640123,-330.99003531,9.996e-05,2]
[348595888,1736658640134,-21.47943606,9.997e-05,2]
[348595889,1736658640144,-333.63052863,9.997e-05,2]
[348595890,1736658640155,-166.36947137,9.997e-05,2]
[348595891,1736658640165,-842.28,9.997e-05,2]
[348595892,1736658640176,-194.15052763,9.997e-05,2]
[348595893,1736658640262,-1341.49947237,9.997e-05,2]
[348595894,1736658640272,-340.29794732,9.997e-05,2]
[348595895,1736658640283,-500.0,9.997e-05,2]
[348595896,1736658640293,-542.61,9.997e-05,2]
[348595897,1736658640303,-500.0,9.997e-05,2]
[348595898,1736658640312,-500.0,9.997e-05,2]
[348595899,1736658640322,-500.0,9.997e-05,2]
[348595900,1736658640332,-528.98,9.997e-05,2]
[348595901,1736658640341,-500.0,9.997e-05,2]
[348595902,1736658640351,-2228.35,9.997e-05,2]
[348595903,1736658640362,-833.96,9.997e-05,2]
[348595904,1736658640372,-500.0,9.997e-05,2]
[348595905,1736658640381,-5929.39,9.997e-05,2]
[348595906,1736658640391,-500.0,9.997e-05,2]
[348595907,1736658640401,-500.0,9.997e-05,2]
[348595908,1736658640411,-500.0,9.997e-05,2]
[348595909,1736658640420,-500.0,9.997e-05,2]
[348595910,1736658640430,-500.0,9.997e-05,2]
[348595911,1736658640439,-500.0,9.997e-05,2]
[348595912,1736658640449,-500.0,9.997e-05,2]
[348595913,1736658640459,-500.0,9.997e-05,2]
[348595914,1736658640469,-500.0,9.997e-05,2]
[348595915,1736658640478,-500.0,9.997e-05,2]
[348595916,1736658640487,-500.0,9.997e-05,2]
[348595917,1736658640497,-698.63,9.997e-05,2]
[348595918,1736658640506,-500.0,9.997e-05,2]
[348595919,1736658640516,-512.03966287,9.997e-05,2]
[348595920,1736658640526,-615.22,9.997e-05,2]
[348595921,1736658640535,-500.0,9.997e-05,2]
[348595922,1736658640544,-953.52,9.997e-05,2]
[348595923,1736658640554,-500.0,9.997e-05,2]
[348595924,1736658640564,-1000.0,9.997e-05,2]
[348595925,1736658640573,-729.21,9.997e-05,2]
[348595926,1736658640584,-500.0,9.997e-05,2]
[348595927,1736658640595,-643.17,9.997e-05,2]
[348595928,1736658640605,-500.0,9.997e-05,2]
[348595929,1736658640615,-573.8,9.997e-05,2]
[348595930,1736658640625,-500.0,9.997e-05,2]
[348595931,1736658640635,-840.88,9.997e-05,2]
[348595932,1736658640646,-536.74,9.997e-05,2]
[348595933,1736658640656,-500.0,9.997e-05,2]
[348595934,1736658640665,-500.0,9.997e-05,2]
[348595935,1736658640675,-500.0,9.997e-05,2]
[348595936,1736658640688,-698.34,9.997e-05,2]
[348595937,1736658640702,-500.0,9.997e-05,2]
[348595938,1736658640711,-500.0,9.997e-05,2]
[348595939,1736658640720,-500.0,9.997e-05,2]
[348595940,1736658640730,-500.0,9.997e-05,2]
[348595941,1736658640739,-500.0,9.997e-05,2]
[348595942,1736658640748,-500.0,9.997e-05,2]
[348595943,1736658640757,-500.0,9.997e-05,2]
[348595944,1736658640767,-500.0,9.997e-05,2]
[348595945,1736658640776,-500.0,9.997e-05,2]
[348595946,1736658640787,-2362.17,9.997e-05,2]
[348595947,1736658640797,-614.35,9.997e-05,2]
[348595948,1736658640806,-745.39,9.997e-05,2]
[348595949,1736658640815,-500.0,9.997e-05,2]
[348595950,1736658640826,-500.0,9.997e-05,2]
[348595951,1736658640835,-500.0,9.997e-05,2]
[348595952,1736658640844,-500.0,9.997e-05,2]
[348595953,1736658640854,-544.94,9.997e-05,2]
[348595954,1736658640863,-2521.09,9.997e-05,2]
[348595955,1736658640873,-500.0,9.997e-05,2]
[348595956,1736658640882,-500.0,9.997e-05,2]
[348595957,1736658640891,-500.0,9.997e-05,2]
[348595958,1736658640901,-762.95,9.997e-05,2]
[348595959,1736658640911,-1522.54,9.997e-05,2]
[348595960,1736658640921,-500.0,9.997e-05,2]
[348595961,1736658640931,-500.0,9.997e-05,2]
[348595962,1736658640941,-752.48,9.997e-05,2]
[348595963,1736658640951,-500.0,9.997e-05,2]
[348595964,1736658640962,-500.0,9.997e-05,2]
[348595965,1736658640972,-500.0,9.997e-05,2]